Cogmind - Beta 14 @@@ ROGUE MODE // 2024.11.23 @ 23:02:24 Player: hoganstuff Result: Self-destructed Performance ------------- Evolutions (3) 1500 Regions Visited (9) 1800 Robots Destroyed (78) 390 Value Destroyed (2009) 2009 Prototype IDs (4) 80 Alien Tech Used (0) 0 Bonus (608) 608 TOTAL SCORE: 6387 Bonus ------- High Alert Combat Kills 8 Aligned with FarCom 300 Met Imprinter 300 Cogmind --------- Core Integrity 290/700 Matter 267/300 Energy 74/100 System Corruption 14% Temperature Cool (0) Movement Core (350) Ox6 Location -7/Zion Parts ------- > --- POWER (1) -------- (None) > --- PROPULSION (4) --- (None) > --- UTILITY (4) ------ Large Storage Unit > --- WEAPON (4) ------- (None) > --- INVENTORY (15) --- Carbon-fiber Leg Carbon-fiber Leg Makeshift Leg Makeshift Leg Makeshift Leg Makeshift Leg Medium Storage Unit Compact Matter Pod (150) Advanced Weight Redist. System Core Analyzer Makeshift Propulsion Shielding Recalibrator Barrage Gun CR-A16's Pointy Stick Peak State ------------ > --- POWER ------------ Makeshift Power Source > --- PROPULSION ------- Improved Titanium Leg Makeshift Leg Makeshift Leg Makeshift Leg > --- UTILITY ---------- Improved Heat Sink Large Storage Unit Core Analyzer Makeshift Propulsion Shielding > --- WEAPON ----------- Improved Spread Laser Plasma Cannon Gauss Rifle Makeshift Axe > --- INVENTORY -------- Improved Deuterium Engine Carbon-fiber Leg Carbon-fiber Leg Makeshift Leg Makeshift Leg Medium Storage Unit Compact Matter Pod Advanced Weight Redist. System Core Analyzer Recalibrator Lightning Gun Barrage Gun Heavy Missile Launcher CR-A16's Pointy Stick [Rating: 53] Favorites ----------- Power Light Nuclear Core Engine Light Deuterium Engine Power Core Light Nuclear Core Propulsion Carbon-fiber Leg Treads Light Treads Leg Carbon-fiber Leg Utility Improved Heat Sink Device Improved Heat Sink Storage Large Storage Unit Processor Core Analyzer Protection Improved Light Armor Plating Weapon Guided Plasma Cannon Energy Gun Particle Gun Energy Cannon Guided Plasma Cannon Ballistic Gun Gauss Rifle Ballistic Cannon Light Cannon Launcher Grenade Launcher Slashing Weapon Makeshift Axe Build | -11 -10 -9 -9 -9 -8 -8 -7 -7 -7 ------- Run | Yrd Mat Mat Min Exi Min Mat Fac Low Zio Slots Evolved 6 | . . 2 . . . 2 2 . . Power . | . . . . . . . . . . Propulsion 2 | . . 1 . . . . 1 . . Utility 2 | . . . . . . 2 . . . Weapon 2 | . . 1 . . . . 1 . . Parts Attached 113 | 7 16 15 2 1 12 15 21 . 24 Power 17 | 2 3 3 . . 2 1 4 . 2 Engine 11 | 2 2 1 . . . 1 3 . 2 Core 6 | . 1 2 . . 2 . 1 . . Reactor . | . . . . . . . . . . Propulsion 27 | 2 3 2 . . 5 5 1 . 9 Treads 3 | 2 1 . . . . . . . . Leg 24 | . 2 2 . . 5 5 1 . 9 Wheel . | . . . . . . . . . . Hover . | . . . . . . . . . . Flight . | . . . . . . . . . . Utility 32 | 1 6 2 2 . 3 7 8 . 3 Device 16 | . 3 2 1 . 2 4 2 . 2 Storage 7 | 1 3 . . . 1 2 . . . Processor 1 | . . . . . . . 1 . . Hackware . | . . . . . . . . . . Protection 8 | . . . 1 . . 1 5 . 1 Artifact . | . . . . . . . . . . Weapon 37 | 2 4 8 . 1 2 2 8 . 10 Energy Gun 15 | 2 3 . . . 1 . 6 . 3 Energy Cannon 7 | . . 1 . 1 . 2 1 . 2 Ballistic Gun 8 | . . 4 . . 1 . 1 . 2 Ballistic Cannon 1 | . 1 . . . . . . . . Launcher 5 | . . 3 . . . . . . 2 Special Weapon . | . . . . . . . . . . Impact Weapon . | . . . . . . . . . . Slashing Weapon 1 | . . . . . . . . . 1 Piercing Weapon . | . . . . . . . . . . Special Melee Weapon . | . . . . . . . . . . Unidentified Prototypes 4 | . . 1 . 1 . . 2 . . Parts Lost 33 | . 6 3 . . 5 1 . . 18 Power 3 | . . 1 . . . . . . 2 Propulsion 8 | . 2 . . . 3 1 . . 2 Utility 8 | . 2 . . . 1 . . . 5 Weapon 14 | . 2 2 . . 1 . . . 9 Highest Loss Streak 9 | . 4 2 . . 4 1 . . 9 To Critical Strikes 1 | . . . . . . . . . 1 Average Slot Usage (%) 95 | . 91 95 99 100 92 99 99 100 95 Engine 4 | . 9 6 . . . 5 4 . 2 Core 5 | . 4 4 11 11 11 3 2 7 4 Treads 2 | . 12 . . . . . . . . Leg 25 | . 11 33 33 33 25 27 30 30 28 Device 10 | . 11 7 10 11 10 18 8 7 6 Storage 9 | . 14 11 11 11 11 9 7 7 7 Processor 2 | . . . . . . . 5 7 6 Protection 3 | . . . . . . 8 6 7 6 Energy Gun 11 | . 22 1 . . 9 5 13 15 13 Energy Cannon 7 | . . . . 6 11 15 13 7 4 Ballistic Gun 7 | . . 14 22 22 12 6 2 7 6 Ballistic Cannon 2 | . 4 11 11 4 . . . . . Peak Build Rating 53 | 6 10 14 14 21 29 38 50 49 53 Average Rating 28 | 4 7 11 13 18 24 35 46 49 47 On Entrance 22 | . 6 9 14 14 21 29 38 49 49 Naked Turns . | . . . . . . . . . . Heaviest Build 64 | 14 30 26 25 32 43 51 64 55 59 Greatest Support 80 | 40 40 30 30 30 40 51 61 55 80 Greatest Overweight (x) 10 | . 9 . . 1 10 1 1 . 1 Average Overweight (x) . | . . . . . 1 . . . . Largest Inventory Capacity 15 | 8 15 10 10 10 15 15 15 15 15 Average Capacity 12 | 7 11 10 10 10 12 14 15 15 15 Most Carried 15 | 1 10 10 10 10 11 14 15 15 15 Average Carried 10 | . 6 8 9 9 9 10 14 15 14 Final Capacity 15 | 8 10 10 10 10 15 15 15 15 15 Final Carried 15 | 1 10 9 9 10 10 13 15 15 14 Class Distribution -------------------- 30% | Scavenger-Skirmisher 24% | Scavenger-Gunner 17% | Mutant 17% | Skirmisher 5% | Gunner 3% | Scavenger-Mutant Dominant Class ---------------- Mutant | -10/Materials Gunner | -9/Materials Scavenger-Gunner | -9/Mines Scavenger-Gunner | -9/Exiles Scavenger-Skirmisher | -8/Mines Scavenger-Skirmisher | -8/Materials Skirmisher | -7/Factory Scavenger-Gunner | -7/Lower Caves Scavenger-Gunner | -7/Zion Resources | -11 -10 -9 -9 -9 -8 -8 -7 -7 -7 ----------- Run | Yrd Mat Mat Min Exi Min Mat Fac Low Zio Matter Collected 1949 | 270 202 225 95 . 585 140 131 . 301 Remotely . | . . . . . . . . . . Salvage Created 2508 | . 470 348 31 . 465 193 428 . 573 Parts 147 | . 25 20 6 . 16 9 17 . 54 Haulers Intercepted 3 | . 2 1 . . . . . . . Recyclers Shooed 5 | . 1 . 2 . 2 . . . . Parts Field Recycled 8 | . . . . . . . 8 . . Retrieved Matter 180 | . . . . . . . 180 . . Parts Self-Destructed . | . . . . . . . . . . Prevented . | . . . . . . . . . . Kills | -11 -10 -9 -9 -9 -8 -8 -7 -7 -7 ------- Run | Yrd Mat Mat Min Exi Min Mat Fac Low Zio Combat Hostiles Destroyed 50 | . 11 11 3 . 10 5 6 . 4 Guns 16 | . 10 2 2 . 1 . . . 1 Cannons 25 | . . 4 1 . 9 4 6 . 1 AOE 7 | . . 5 . . . . . . 2 Classes Destroyed 14 | . 4 4 . . 2 . 1 . 3 Builder 1 | . . 1 . . . . . . . Hauler 3 | . 2 1 . . . . . . . Recycler 3 | . 1 . . . 1 . 1 . . Watcher 1 | . . 1 . . . . . . . Swarmer 15 | . 3 4 3 . 3 2 . . . Grunt 23 | . 8 5 . . 5 1 4 . . Brawler 1 | . . 1 . . . . . . . Duelist 1 | . . . . . 1 . . . . Sentry 4 | . . 1 . . . 2 1 . . Hunter 1 | . . . . . 1 . . . . Programmer 1 | . . . . . . . 1 . . Zionite 21 | . . . . . . . . . 21 Tinkerer 2 | . . . . . . . . . 2 Mutant 4 | . . . . . . . . . 4 Best Kill Streak 6 | . 4 6 3 . 3 2 4 . 6 Combat Bots Only 5 | . 3 5 3 . 3 2 4 . 4 Max Kills in Single Turn 4 | . 2 2 1 . 1 1 1 . 4 Gunslinging 1 | . 1 . . . . . . . . Exploded 2 | . . 2 . . . . . . 2 Melee . | . . . . . . . . . . Uniques/NPCs Destroyed . | . . . . . . . . . . Combat | -11 -10 -9 -9 -9 -8 -8 -7 -7 -7 -------- Run | Yrd Mat Mat Min Exi Min Mat Fac Low Zio Hostile Shots Fired 499 | . 132 55 20 . 48 20 61 . 163 Missed 170 | . 35 21 10 . 10 4 30 . 60 Damage Taken 5211 | . 1003 462 78 . 642 347 374 . 2305 Core 971 | . 231 67 17 . 213 33 30 . 380 Absorbed by Shields . | . . . . . . . . . . Redirected to Shielding 31 | . . . . . . . . . 31 Regen/Repaired (Parts) 113 | . 113 . . . . . . . . Core Remaining (%) 56 | 100 7 . . . 25 94 . . . Volleys Fired 198 | . 62 28 6 . 37 15 22 . 28 Largest 3 | . 2 3 3 . 2 2 3 . 3 Hottest 210 | . 105 130 81 . 120 120 205 . 210 Shots Fired 329 | . 95 64 14 . 40 17 26 . 73 Gun 217 | . 90 28 10 . 18 4 7 . 60 Cannon 97 | . 5 24 4 . 22 13 19 . 10 Launcher 15 | . . 12 . . . . . . 3 Special . | . . . . . . . . . . Kinetic 107 | . 5 45 14 . 18 2 . . 23 Thermal 204 | . 90 7 . . 22 15 24 . 46 Explosive 15 | . . 12 . . . . . . 3 Electromagnetic 3 | . . . . . . . 2 . 1 Robot Hit Streak 26 | . 7 4 3 . 10 14 26 . 12 Robot Miss Streak 8 | . 5 4 3 . 2 1 3 . 8 Penetration Max 1 | . . . . . . . . . 1 Secondary Targets 2 | . 1 . . . . . . . 1 Max Gunslinging Chain 1 | . 1 . . . . . . . 1 Shots Hit Robots 230 | . 56 35 8 . 34 16 22 . 59 Core Hits 126 | . 21 27 4 . 15 7 10 . 42 Critical Kills . | . . . . . . . . . . Critical Parts Destroyed . | . . . . . . . . . . Critical Strikes 5 | . 3 . . . . . . . 2 Burn 3 | . 3 . . . . . . . . Sever 2 | . . . . . . . . . 2 Melee Attacks 22 | . . . . . . . . . 22 Impact . | . . . . . . . . . . Slashing 22 | . . . . . . . . . 22 Piercing . | . . . . . . . . . . Sneak Attacks . | . . . . . . . . . . Combat Hostiles . | . . . . . . . . . . Follow-up Attacks . | . . . . . . . . . . Damage Inflicted 5939 | . 652 962 142 . 1001 529 714 . 1939 Guns 1947 | . 600 329 58 . 257 59 82 . 562 Cannons 2289 | . 40 227 69 . 740 429 632 . 152 Explosions 1092 | . . 406 . . . . . . 686 Melee 539 | . . . . . . . . . 539 Ramming 72 | . 12 . 15 . 4 41 . . . Kinetic 1141 | . 40 491 127 . 257 42 . . 184 Thermal 3057 | . 600 65 . . 740 446 693 . 513 Explosive 1092 | . . 406 . . . . . . 686 Electromagnetic 38 | . . . . . . . 21 . 17 Impact . | . . . . . . . . . . Slashing 539 | . . . . . . . . . 539 Piercing . | . . . . . . . . . . Highest Corruption 14 | . . . . . . . 1 1 14 Average Corruption 1 | . . . . . . . 1 1 4 Corruption Purged . | . . . . . . . . . . Corruption Blocked . | . . . . . . . . . . Effects 6 | . . . . . . . 2 . 4 Message Errors 2 | . . . . . . . 2 . . Matter Fused 1 | . . . . . . . . . 1 Data Loss (major) 1 | . . . . . . . . . 1 Alerts 1 | . . . . . . . . . 1 Weapon Failures 1 | . . . . . . . . . 1 Overload Shots . | . . . . . . . . . . Overflow Damage 74 | . . 2 . . . 20 . . 52 Projectiles 20 | . . . . . . 20 . . . Explosions 54 | . . 2 . . . . . . 52 Melee . | . . . . . . . . . . Knockbacks 2 | . 1 1 . . . . . . . Impact . | . . . . . . . . . . Kinetic 2 | . 1 1 . . . . . . . Secondary . | . . . . . . . . . . Self-Inflicted Damage 155 | . . 84 . . . . . . 71 Shots 6 | . . 4 . . . . . . 2 Rammed 6 | . 6 . . . . . . . . Targets Rammed 19 | . 8 1 3 . 3 4 . . . Kicked 12 | . 1 1 3 . 3 4 . . . Crushed 1 | . 1 . . . . . . . . Highest Temperature 590 | . 418 297 54 . 590 220 505 . 407 Average Temperature 143 | . 137 67 24 . 266 86 183 . 114 Received Heat Transfer 1451 | . 348 180 . . 315 117 144 . 347 Effects 25 | . 5 . . . 16 . 3 . 1 Shutdowns 5 | . 1 . . . 2 . 2 . . Energy Bleed 1 | . 1 . . . . . . . . Interference 4 | . 1 . . . 2 . . . 1 Matter Decay 6 | . 1 . . . 4 . 1 . . Short Circuit 4 | . 1 . . . 3 . . . . Damage (minor) 2 | . . . . . 2 . . . . Damage (major) 1 | . . . . . 1 . . . . Damage (core) 2 | . . . . . 2 . . . . Siege Activations . | . . . . . . . . . . Robots Corrupted . | . . . . . . . . . . Combat Hostiles . | . . . . . . . . . . Parts Fried . | . . . . . . . . . . Impact Corruptions . | . . . . . . . . . . Robots Melted 2 | . 1 . . . . 1 . . . Combat Hostiles 2 | . 1 . . . . 1 . . . Parts Melted 17 | . 3 . . . 5 2 2 . 5 Heat Transferred 7079 | . 1746 148 . . 1680 997 1478 . 1030 Parts Sabotaged . | . . . . . . . . . . Parts Stolen . | . . . . . . . . . . Parts Stripped . | . . . . . . . . . . Power Chain Reactions . | . . . . . . . . . . Alert | -11 -10 -9 -9 -9 -8 -8 -7 -7 -7 ------- Run | Yrd Mat Mat Min Exi Min Mat Fac Low Zio Peak Influence 438 | . 226 438 161 . 175 209 108 . . Initial 91 | . . 40 91 . . 9 3 . . Average 85 | . 115 281 136 . 68 47 19 . . Maximum Alert Level 2 | . 1 2 . . . 1 . . . Low Security (%) 85 | 100 80 19 100 . 100 89 100 . . Level 1 12 | . 19 64 . . . 10 . . . Level 2 1 | . . 15 . . . . . . . Level 3 . | . . . . . . . . . . Level 4 . | . . . . . . . . . . Level 5 . | . . . . . . . . . . High Security . | . . . . . . . . . . Max Security . | . . . . . . . . . . Squads Dispatched 6 | . 1 . . . . 3 2 . . Investigation 2 | . 1 . . . . 1 . . . Extermination 1 | . . . . . . . 1 . . Reinforcement 3 | . . . . . . 2 1 . . Assault . | . . . . . . . . . . Garrison . | . . . . . . . . . . Intercept . | . . . . . . . . . . Searches Triggered . | . . . . . . . . . . Construction Impeded . | . . . . . . . . . . Haulers Reinforced . | . . . . . . . . . . Active Scanning Responses . | . . . . . . . . . . Cargo Convoy Interrupts . | . . . . . . . . . . Stealth | -11 -10 -9 -9 -9 -8 -8 -7 -7 -7 --------- Run | Yrd Mat Mat Min Exi Min Mat Fac Low Zio Distress Signals 3 | . 1 1 . . . 1 . . . Communications Jammed . | . . . . . . . . . . Distress Signals . | . . . . . . . . . . Times Spotted 121 | . 32 21 3 . 11 13 8 . 33 Peak Tracking Total 8 | . 8 4 3 . 3 5 4 . 8 Tactical Retreats 10 | . 4 . . . 1 1 . . 4 Traps | -11 -10 -9 -9 -9 -8 -8 -7 -7 -7 ------- Run | Yrd Mat Mat Min Exi Min Mat Fac Low Zio Traps Triggered 1 | . . . . . . . 1 . . Indirectly . | . . . . . . . . . . Trap Hack Attempts . | . . . . . . . . . . Triggered . | . . . . . . . . . . Disarmed . | . . . . . . . . . . Reprogrammed . | . . . . . . . . . . Reused . | . . . . . . . . . . Traps Extracted . | . . . . . . . . . . Installed . | . . . . . . . . . . Triggered . | . . . . . . . . . . Machines | -11 -10 -9 -9 -9 -8 -8 -7 -7 -7 ---------- Run | Yrd Mat Mat Min Exi Min Mat Fac Low Zio Machines Disabled 7 | . . 1 . . . 2 . . 4 Max in Single Turn 2 | . . 1 . . . 1 . . 2 Machines Repaired . | . . . . . . . . . . Machines Dismantled . | . . . . . . . . . . Machines Sabotaged . | . . . . . . . . . . Overloaded Fab Kills . | . . . . . . . . . . Hacking | -11 -10 -9 -9 -9 -8 -8 -7 -7 -7 --------- Run | Yrd Mat Mat Min Exi Min Mat Fac Low Zio Machines Accessed 15 | . 4 3 . . . 4 4 . . Terminals 10 | . 2 3 . . . 3 2 . . Fabricators . | . . . . . . . . . . Repair Stations 1 | . 1 . . . . . . . . Recycling Units 2 | . 1 . . . . 1 . . . Scanalyzers 1 | . . . . . . . 1 . . Garrison Access 1 | . . . . . . . 1 . . Total Hacks 35 | . 8 6 . . . 10 11 . . Successful 14 | . 4 1 . . . 5 4 . . Failed 21 | . 4 5 . . . 5 7 . . Catastrophic 5 | . 1 1 . . . 1 2 . . Database Lockouts . | . . . . . . . . . . Manual 16 | . 3 6 . 1 . 5 1 . . Terminals 21 | . 3 6 . . . 9 3 . . Fabricators . | . . . . . . . . . . Repair Stations 4 | . 4 . . . . . . . . Recycling Units 2 | . 1 . . . . 1 . . . Scanalyzers 6 | . . . . . . . 6 . . Garrison Access 2 | . . . . . . . 2 . . Terminal Hacks 6 | . 1 1 . . . 4 . . . Record 2 | . . . . . . 2 . . . Branch Access Points 3 | . 1 1 . . . 1 . . . Alert Level 1 | . . . . . . 1 . . . Fabricator Hacks . | . . . . . . . . . . Repair Station Hacks 2 | . 2 . . . . . . . . Scan Component 1 | . 1 . . . . . . . . Repair 1 | . 1 . . . . . . . . Recycling Unit Hacks 2 | . 1 . . . . 1 . . . Report Inventory 2 | . 1 . . . . 1 . . . Scanalyzer 4 | . . . . . . . 4 . . Insert Component 2 | . . . . . . . 2 . . Analyze 2 | . . . . . . . 2 . . Garrison Access Hacks . | . . . . . . . . . . Unauthorized Hacks . | . . . . . . . . . . Terminals . | . . . . . . . . . . Fabricators . | . . . . . . . . . . Repair Stations . | . . . . . . . . . . Recycling Units . | . . . . . . . . . . Scanalyzers . | . . . . . . . . . . Garrison Access . | . . . . . . . . . . Data Cores Recovered . | . . . . . . . . . . Used . | . . . . . . . . . . Hacking Detections 14 | . 4 3 . . . 3 4 . . Full Trace Events 2 | . 1 . . . . 1 . . . Feedback Events . | . . . . . . . . . . Feedback Blocked . | . . . . . . . . . . Robot Schematics Acquired . | . . . . . . . . . . Robots Built . | . . . . . . . . . . Authchips . | . . . . . . . . . . Time . | . . . . . . . . . . Total Robot Build Rating . | . . . . . . . . . . Part Schematics Acquired 2 | . . . . . . . 2 . . Parts Built . | . . . . . . . . . . Authchips . | . . . . . . . . . . Time . | . . . . . . . . . . Total Part Build Rating . | . . . . . . . . . . Parts Repaired 1 | . 1 . . . . . . . . Time 13 | . 13 . . . . . . . . Parts Recycled . | . . . . . . . . . . Recycled Matter . | . . . . . . . . . . Retrieved Matter . | . . . . . . . . . . Retrieved Components . | . . . . . . . . . . Parts Scanalyzed 2 | . . . . . . . 2 . . Part Schematics Acquired 2 | . . . . . . . 2 . . Parts Damaged . | . . . . . . . . . . Bothacking | -11 -10 -9 -9 -9 -8 -8 -7 -7 -7 ------------ Run | Yrd Mat Mat Min Exi Min Mat Fac Low Zio Used RIF Installer . | . . . . . . . . . . Robots Hacked . | . . . . . . . . . . Non-combat . | . . . . . . . . . . Combat . | . . . . . . . . . . Robot Hacks Applied . | . . . . . . . . . . Relay Couplers Released . | . . . . . . . . . . Fabnet Peak Effective % . | . . . . . . . . . . Robots Rewired . | . . . . . . . . . . Allies Hacked . | . . . . . . . . . . Hacks Repelled . | . . . . . . . . . . Allies | -11 -10 -9 -9 -9 -8 -8 -7 -7 -7 -------- Run | Yrd Mat Mat Min Exi Min Mat Fac Low Zio Total Allies . | . . . . . . . . . . Largest Group . | . . . . . . . . . . Highest-Rated Group . | . . . . . . . . . . Highest-Rated Ally . | . . . . . . . . . . Total Orders . | . . . . . . . . . . Ally Attacks . | . . . . . . . . . . Total Damage . | . . . . . . . . . . Kills . | . . . . . . . . . . Allies Corrupted . | . . . . . . . . . . Allies Melted . | . . . . . . . . . . Intel | -11 -10 -9 -9 -9 -8 -8 -7 -7 -7 ------- Run | Yrd Mat Mat Min Exi Min Mat Fac Low Zio Robot Analysis Total . | . . . . . . . . . . Derelict Logs Recovered . | . . . . . . . . . . Drone Launches . | . . . . . . . . . . Drone Recoveries . | . . . . . . . . . . Exploration | -11 -10 -9 -9 -9 -8 -8 -7 -7 -7 ------------- Run | Yrd Mat Mat Min Exi Min Mat Fac Low Zio Turns Passed 5459 | 97 1002 442 137 361 898 582 1161 44 735 Spaces Moved 3211 | 53 489 264 94 230 400 377 827 37 440 Core 14 | 3 5 . . . 6 . . . . Treads 222 | 50 172 . . . . . . . . Legs 2975 | . 312 264 94 230 394 377 827 37 440 Wheels . | . . . . . . . . . . Hover . | . . . . . . . . . . Flight . | . . . . . . . . . . Fastest Speed 50 | 50 120 120 120 120 120 120 120 120 120 Average Speed 140 | 153 158 120 120 156 195 126 121 120 125 Slowest Speed 550 | 160 500 120 120 190 550 190 190 120 190 Overloaded Moves . | . . . . . . . . . . Propulsion Burnouts . | . . . . . . . . . . Robots Hopped . | . . . . . . . . . . Cave-ins Triggered . | . . . . . . . . . . Exploration Rate (%) 37 | 5 65 27 20 60 80 31 21 7 54 Regions Visited 9 Branch Regions 5 Pre-discovered Areas . | . . . . . . . . . . Known Exits Taken 1 | . . 1 . . . . . . . Unknown Exits Taken 8 | 1 1 . 1 1 1 1 1 1 . Scrap Searched 3 | . . . 1 . 1 . . . 1 Spaces Dug . | . . . . . . . . . . Terrain Destroyed 72 | . . 71 . . 1 . . . . Melee . | . . . . . . . . . . Projectile 1 | . . . . . 1 . . . . AOE 71 | . . 71 . . . . . . . Terrain Rammed . | . . . . . . . . . . Walls Destroyed . | . . . . . . . . . . Machines Disabled . | . . . . . . . . . . Actions | -11 -10 -9 -9 -9 -8 -8 -7 -7 -7 --------- Run | Yrd Mat Mat Min Exi Min Mat Fac Low Zio Total 3830 | 66 613 336 107 233 475 462 961 36 541 Wait 140 | 4 25 6 . . 10 35 55 . 5 Move 3202 | 52 488 263 93 229 399 376 826 36 440 Hop . | . . . . . . . . . . Pick Up 51 | 2 7 11 1 1 5 8 11 . 5 Fast Attach 34 | 5 9 1 . 1 4 1 7 . 6 Attach 29 | 1 3 5 2 . 2 4 3 . 9 Detach 20 | . 4 1 1 1 . 2 4 . 7 Swap 51 | 1 4 10 . . 6 10 11 . 9 Drop 59 | 1 3 10 1 1 9 7 17 . 10 Fire 198 | . 62 28 6 . 37 15 22 . 28 Melee 22 | . . . . . . . . . 22 Ram . | . . . . . . . . . . Kick 12 | . 1 1 3 . 3 4 . . . Crush 7 | . 7 . . . . . . . . Escape Stasis 5 | . . . . . . . 5 . . Rewire . | . . . . . . . . . . Trap . | . . . . . . . . . . Miscellaneous . | . . . . . . . . . . Route ------- -11/Scrapyard -10/Materials (discovered 2 exits: *Mat / *Min) -9/Materials (discovered 2 exits: *Min / Sto) -9/Mines (discovered 2 exits: *Mat / *Exi) -9/Exiles -8/Mines -8/Materials -7/Factory -7/Lower Caves -7/Zion History --------- Turn | Location | Event 20 | -11/Scrapyard | Discovered new exit (range 16) 98 | -11/Scrapyard | Entered Materials 305 | -10/Materials | Build established: Mutant 451 | -10/Materials | Repaired Lgt. Treads 507 | -10/Materials | Core integrity fell below 50% 554 | -10/Materials | Core integrity fell below 20% 594 | -10/Materials | Lost 4 parts (2n1u1w) 669 | -10/Materials | Discovered new exit (range 7) 914 | -10/Materials | Identified exit to Mines 1100 | -10/Materials | Entered another Materials area 1100 | -9/Materials | Evolved 2 slots: Propulsion x1, Weapon x1 1398 | -9/Materials | Identified exit to Mines 1398 | -9/Materials | Identified exit to Storage 1542 | -9/Materials | Entered Mines 1645 | -9/Mines | Discovered new exit (range 8) 1670 | -9/Mines | Deemed a non-threat by the Exiles lab entrance 1671 | -9/Mines | Discovered new exit (range 5) 1679 | -9/Mines | Entered Exiles 1712 | -9/Exiles | Met 8R-AWN 1730 | -9/Exiles | Met EX-HEX 1748 | -9/Exiles | Build established: Scavenger-Gunner 1762 | -9/Exiles | Met EX-BIN 1777 | -9/Exiles | Aligned with FarCom system 1778 | -9/Exiles | Given EX-Vault access code 1808 | -9/Exiles | Opened EX-Vault 1813 | -9/Exiles | Found Prototype Energy Cannon 1813 | -9/Exiles | Identified Gui. Plasma Cannon 1851 | -9/Exiles | Warned to stay clear of 0b10 Research branches 1884 | -9/Exiles | Exiles lab attacked by MAIN.C 2021 | -9/Exiles | Discovered new exit (range 12) 2040 | -9/Exiles | Left Exiles lab with Gui. Plasma Cannon 2040 | -9/Exiles | Entered Mines 2108 | -8/Mines | Core integrity fell below 50% 2136 | -8/Mines | Lost 4 parts (3n1u) 2197 | -8/Mines | Discovered new exit (range 5) 2437 | -8/Mines | Build established: Scavenger-Skirmisher 2938 | -8/Mines | Entered Materials 2938 | -8/Materials | Evolved 2 slots: Utility x2 3366 | -8/Materials | Met 7R-MNS 3508 | -8/Materials | Discovered new exit (range 5) 3520 | -8/Materials | Entered Factory 3520 | -7/Factory | Evolved 2 slots: Propulsion x1, Weapon x1 3569 | -7/Factory | Build established: Skirmisher 4456 | -7/Factory | Build established: Scavenger-Skirmisher 4504 | -7/Factory | Discovered new exit (range 13) 4681 | -7/Factory | Entered Lower Caves 4682 | -7/Lower Caves | A Derelict revealed a hidden shortcut to a safe place 4725 | -7/Lower Caves | Entered Zion 4779 | -7/Zion | System corruption cleaned by Quarantine Array 4905 | -7/Zion | Found CR-A16's Pointy Stick 4997 | -7/Zion | Build established: Scavenger-Gunner 4998 | -7/Zion | Given A8's code to call for help 5040 | -7/Zion | Rebuked by Imprinter 5065 | -7/Zion | Attempted to imprint without authorization 5065 | -7/Zion | Attacked by Zionites 5315 | -7/Zion | Lost 3 parts (2u1w) 5432 | -7/Zion | Lost 3 parts (1p1u1w) 5448 | -7/Zion | System corruption reached 10% 5458 | -7/Zion | Core integrity fell below 50% 5460 | -7/Zion | Self-destructed Last Messages --------------- 05443_ 7X-E9N(z) destroyed. 05446_ System corrupted: IFF burst signal emitted. 05446_ Imp. Titanium Leg destroyed. 05446_ Knocked back. 05447_ Acquired 5 matter. 05447_ Critical hit (Smash). 05447_ Plasma Cannon destroyed. 05447_ System corrupted by crushing effect (+5). 05448_ Mak. Leg destroyed. 05450_ Imp. Deuterium Engine destroyed. 05453_ Imp. Spread Laser destroyed. 05453_ Mak. Axe destroyed. 05453_ System corrupted by crushing effect (+2). 05453_ Knocked back. 05454_ Destroyed Mak. Leg. 05454_ Destroyed Mak. Power Source. 05454_ G0-OZX(z) destroyed. 05455_ Hvy. Missile Launcher destroyed. 05457_ WV-YVD(z) destroyed. Map ----- +----------------------------------------------------+ | ???""" ???????????????????????????????????????? | | ???""" ???????????????????????????????????????? | | ??"" ???????????????????????????????????????? | | ??" """?????????????????????????????????????? | | ? """" ??????????????????????????????????? | | ? """" ??????????????????????????????????? | | """""" """ "????????????????????????????????? | | #""""" """""""????????????????????????????????? | | ##"" """"""?????????????????????????????????? | | #""" """##?????????????????????????????????? | | #""" ""#"????????????????????????????????? | | #""" % """"" ????????????????????????????? | | #"" "" ????????????????????????????? | | #"" "" #???????????????????????????? | | ##" / """ ""??????????????????????????? | | """ !""" ""??????????????????????????? | | """ " #"??????????????????????????? | | "" """ #"??????????????????????????? | | #" """"""" """?????????????????????????? | | #" """"""" #""#????????????????????????? | | "" / """" """#????????????????????????? | | """ "" !%""#" " """######???????????????????? | | #""""" = """ " "z"""""#???????????????????? | | #"""" "z " " """"#???????????????????? | | #"" M " "##???????????????????? | | #"" z@%""#???????????????????? | | #"" " [ ! """#???????????????????? | | ##"" "" "" =%== ""##???????????????????? | | ?#"""" """""" = "##????????????????????? | | ?##""" """"" "###????????????????????? | | ###"" ! """ ""#????????????????????? | | "" " / /= "#" ""#????????????????????? | | " *%=%" """" ""#????????????????????? | | "" /%%%"""" """" " "##????????????????????? | | ## % ==*"""" """" ""#????????????????????? | | ?# *""""" "" """#????????????????????? | | #"# """ " """""###????????????????????? | | "##" ="""""" """"##??????????????????????? | | """" ["""" ""#"#???????????????????????? | | = == ] * """! """#???????????????#####????? | | /[ =* = "" """#???????????#####"""#????? | | """ """"""" = ] """#??""#""#"?"#"#"#" "#????? | | ""#""""""""" """###"""""""##""""# #####? | | #########"#" """"""" """#""""""/ "## | | ????????###" "" ""#"#""" """" "" "# | | ????????#""" "" """""""" " " | | ????????""" """ | | ????????" """ | | ???????"" """ | | ???????"" """" | +----------------------------------------------------+ Best States ------------- Heat Dissipation 48 Energy Generation 16 Energy Capacity 290 Matter Stores 300 Matter Capacity 300 Sight Range 16 Terrain Scan Density 10 Additional Mass Support 6 Armor Coverage 225 Propulsion Shielding 15 Evasion (%) 55 Core Analysis 6 Recoil Reduction 2 Item Schematics ----------------- Hrd. Medium Armor Plating | -7/Factory | Scanalyzed Plasma Cannon | -7/Factory | Scanalyzed Robot Schematics ------------------ None Fabricated ------------ Nothing Alien Tech Used ----------------- None Achievements -------------- Monster Robot Respite Challenges ------------ None Game ------ Seed NavigationBorePrototype Manual? 0 Play Time 01:43:43 Cumulative 15.4 hours Start 2024.11.19 @ 18:51:12 End 2024.11.23 @ 23:02:24 Sessions 9 Manual Loads 0 Difficulty Rogue Special Mode None Game No. 10 Rogue 4 Adventurer 6 Explorer 0 Win Type - Total 0 Types 0/0/0/0/0/0/0/0/0 Lore% 8 Gallery% 19 Achievement% 15 Wizard Run 0 Options --------- Layout 1 ASCII 0 Keyboard 0 Movement Arrows Keybinds 0 Fullscreen 2 Font 24/Tamsyn Map View 50x35 Zoom Use 0% Tactical HUD 1 Map Filters NONE Filters NONE Steam 1 RUN: 04dc9f9c-c893-4b48-a37e-e7b0e801b3f0